{"text_format":"3","workbook":"xlsx","n_sheets":6,"sheets":["Građevina-PSS","Građevina-Perimetarski put","Odvodnjavanje","Markacija","Ograda","Rekapitulacija"],"read":"whole","date_system":"1900"}

{"sheet":"Građevina-PSS","index":0,"n_rows":34,"n_cols":6,"rows_kept":34,"merged":[[3,0,4,0],[3,1,4,1],[3,2,4,2],[3,3,4,3],[3,4,4,4],[3,5,4,5],[3,6,4,6],[3,7,4,7],[12,0,14,0],[33,0,33,4]]}
[]
[null,"A) Građevina-PSS"]
[]
["red. br.","Opis","Јedinica mere","Količine","Jedinična cena bez PDV-a","Ukupna cena bez  PDV-a"]
[]
[null,"       1 .  P R I P R E M N I    R A D O V I "]
["1.1.","GEODETSKO OBELEŽAVANjE                                                Obeležavanje trase i objekata, sva geodetska merenja, tj. prenošenje podataka s projekta na teren i obratno, osiguranje, obnavljanje i održavanje obeleženih oznaka na terenu za sve vreme građenja, odnosno do predaje radova investitoru. Obračun se vrši po kilometru trase i priključaka u skladu sa projektima i tehničkim uslovima.","km",1.23,null,{"$f":"D7*E7","v":{"v":0,"d":"0.00"}}]
[" ","             SVEGA PRIPREMNI RADOVI (din) :",{"$nulls":3},{"$f":"F7","v":{"v":0,"d":"0.00"}}]
[]
[null,"        2.    Z E M Lj A N I  R A D O V I"]
[]
[2.1,"RAŠČIŠĆAVANJE TERENA                                         Uklanjanje šiblja i trave mašinskim putem sa čupanjem korenja, utovarom istog i odvozom na daljinu do 20km. Obračunato planimetrisanjem. Obračun po m2 očišćene površine.","m2",{"v":150880.4881,"d":"150,880.49"},null,{"$f":"D12*E12","v":{"v":0,"d":"0.00"}}]
["2.2.","ŠIROKI ISKOP                                                                                 Pozicija obuhvata uklanjanje površinskog sloja terena (humusa i starog nasipa) dmin = 50 cm kao i mašinski iskop materijala do kota defnisanih projektom. Iskop se vrši mašinskim putem. Pozicija obuhvata i guranje i lokalno deponovanje iskopanog materijala kako bi se upotrebio za nasip ukoliko zadovolji kriterijume iz tehničkih uslova iz ovog projekta. Svi radovi se moraju izvršiti u skladu sa tehničkim uslovima. Merenje i obračun (prema dokaznicama količina, pozicija Fcut) se vrši po m3 iskopanog materijala. "]
[null,"a) uklanjanje površinskog sloja terena ","m3",{"v":74989.319,"d":"74,989.32"},null,{"$f":"D14*E14","v":{"v":0,"d":"0.00"}}]
[null,"b) mašinski iskop","m3",{"v":84332.238,"d":"84,332.24"},null,{"v":0,"d":"0.00"}]
["2.3.","UREĐENjE TEMELJNOG TLA (PODTLA)                                                             Pozicijom je obuhvaćeno čišćenje, planiranje, eventualno kvašenje radi vlaženja / riljanje tla radi sušenja tla i zbijanje do projektom zahtevane zbijenosti, odnosno potpuno uređenje temeljnog tla prema kotama i nagibima datim u projektu, kao i sva tekuća ispitivanja(Ev2≥30Mpa, Ev2/Ev1≤2.3). Merenje i obračun (prema dokaznicama pozicija Ltt) po m2 isplaniranog i zbijenog temeljnog tla.","m2",{"v":10058.967,"d":"10,058.97"},null,{"v":0,"d":"0.00"}]
["2.4.","IZRADA NASIPA OD LOKALNOG MATERIJALA                                                                                 Pozicija obuhvata izradu nasipa, razastiranje materijala, eventualno kvašenje / sušenje, zbijanje slojeva nasipa, a sve u skladu sa zahtevima iz projekta (Ev2≥30MPa, Ev2/Ev1≤2.3). Nasip se radi u slojevima 20-30 cm. Obuhvata i sva potrebna kontrolna merenja i ispitivanja. Prema dokaznicama količina, pozicija Fem. Obračun se vrši po m3 izrađenog i sabijenog nasipa.","m3",{"v":21597.037,"d":"21,597.04"},null,{"v":0,"d":"0.00"}]
[2.5,"OBRADA ZAVRŠNOG SLOJA NASIPA                                                 Nakon izrade završnog sloja nasipa izvršiti planiranje i nabijanje ježevima i drugim odgovarajućim sredstvima za nabijanje. Traži se zbijenost na vrhu nasipa Ev2≥30MPa i Ev2/Ev1≤2.3. Posle izvršenog nabijanja posteljica se isplanira sa tačnošću ±2cm i uvalja. Prilikom tog planiranja potrebno je strogo držati se projektovanih poprečnih i podužnih nagiba. Obračun po m2 isplanirane i zbijene posteljice. Prema dokaznicama količina, pozicija Lpo.","m2",{"v":47744.68,"d":"47,744.68"},null,{"v":0,"d":"0.00"}]
[2.6,"POLAGANJE GEOKOMPOZITA (GEOMREŽA + GEOTEKSTIL)                                                                                     Pozicija obuhvata nabavku, transport i ugradnju geokompozita (PVA geomreža + PP netkani geotekstil) zatezne čvrstoće 30kN/m, na kontaktu između glinovitog podtla (nasipa) i posteljice od prirodno šljunkovito-peskovitog agregata 0/63mm. Geotekstil se postavlja na ravnu i odgovarajuće pripremljenu podlogu. Spojevi se izvode šivenjem ili preklapanjem. Ugradnju izvršiti prema uputstvu proizvođača. Količina dobijena obračunom količina, priložena u dokaznicama (Lgtex=25327.24m2), je uvećana za 10% za slučaj preklapanja. Obračun po m2 ugrađenog materijala.","m2",{"v":27859.9585,"d":"27,859.96"},null,{"v":0,"d":"0.00"}]
[2.7,"IZRADA POSTELJICE                                                                      Izrada završnog sloja nasipa od prirodno šljunkovitog-peskovitog agregata 0/63mm (Ev2≥60MPa, Ev2/Ev1≤2.4).  Merenje i obračun(prema dokaznicama pozicija Fzam) se vrši po m3 iskopanog materijala.","m3",{"v":7434.942,"d":"7,434.94"}]
[2.8,"IZRADA POSTELJICE OSNOVNE STAZE                                                                     Izrada završnog sloja nasipa/useka osnovne staze od prirodno šljunkovitog-peskovitog agregata 0/63mm (Ev2≥60MPa, Ev2/Ev1≤2.4).  Merenje i obračun(prema dokaznicama pozicija Fzamstrip) se vrši po m3 iskopanog materijala.","m3",{"v":7146.287,"d":"7,146.29"},null,{"$f":"E21*D21","v":{"v":0,"d":"0.00"}}]
[null,"             SVEGA ZEMLJANI RADOVI (din) :",{"$nulls":3},{"$f":"SUM(F12:F21)","v":{"v":0,"d":"0.00"}}]
[null,"        3.    K O L O V O Z N A   K O N S T R U K C I J A "]
[3.1,"IZRADA DONjEG NOSEĆEG SLOJA DA 0/63 mm                                                                                            Izrada donjeg nosećeg sloja od drobljenog kamenog agregata frakcije 0/63mm, debljine izmedju 25cm. Izrađuje se prema tehničkim uslovima datim u projektu (Ev2≥110MPa, Ev2/Ev1≤2.4). Plaća se po m3 ugrađenog i nabijenog sloja., pozicija u dokaznicama Fda63.","m3",{"v":5865.598,"d":"5,865.60"},null,{"v":0,"d":"0.00"}]
[3.2,"IZRADA DONjEG NOSEĆEG SLOJA DA 0/31.5 mm                                                                                                     Izrada donjeg nosećeg sloja od drobljenog kamenog agregata frakcije 0/31,5, debljine15cm. Izrađuje se prema tehničkim uslovima datim u projektu (Ev2≥140MPa, Ev2/Ev1≤2.4). Plaća se po m3 ugrađenog i nabijenog sloja, pozicija u dokaznicama Fda31","m3",{"v":3363.517,"d":"3,363.52"},null,{"v":0,"d":"0.00"}]
[3.3,"IZRADA GORNjEG NOSEĆEG SLOJA OD BITUMENIZIRANOG MATERIJALA BNS 22sA, BiT 50/70, d=9cm                                                                                                            Pozicija obuhvata nabavku, transport i ugradnju materijala potrebnih za izradu gornjeg nosećeg sloja - BNS 22sA u sloju debljine 9cm. Količina dobijena planimetrisanjem. Obračun i plaćanje po m2.","m2",{"v":21518.4491,"d":"21,518.45"},null,{"v":0,"d":"0.00"}]
[3.4,"IZRADA HABAJUĆEG SLOJA OD BITUMENIZIRANOG MATERIJALA AB 11s, BiT 50/70, d=5cm                                                                   Pozicija obuhvata nabavku, transport i ugradnju materijala potrebnih za izradu habajućeg sloja - AB 11s u sloju debljine 5cm. Količina dobijena planimetrisanjem. Obračun i plaćanje po m2","m2",{"v":21518.4491,"d":"21,518.45"},null,{"v":0,"d":"0.00"}]
[3.5,"HUMIZIRANJE RAMENA, OSNOVNE STAZE I KOSINA                                                                Humuziranje slobodnih površina  humusnim materijalom prosečne debljine d=10 cm sa zatravljivanjem travom koja odgovara ekološkim uslovima u području i osigurava trajnost rasta. Obračun i plaćanje se vrši po m3 humuzirane površine  ","m3",{"v":13859.438,"d":"13,859.44"},null,{"v":0,"d":"0.00"}]
[null,"             SVEGA KOLOVOZNA KONSTRUKCIJA (din) :",{"$nulls":3},{"$f":"SUM(F24:F28)","v":{"v":0,"d":"0.00"}}]
[]
["1.","PRIPREMNI RADOVI",{"$nulls":3},{"$f":"F8","v":{"v":0,"d":"0.00"}}]
["2.","ZEMLJANI RADOVI",{"$nulls":3},{"$f":"F22","v":{"v":0,"d":"0.00"}}]
["3.","KOLOVOZNA KONSTRUKCIJA",{"$nulls":3},{"$f":"F29","v":{"v":0,"d":"0.00"}}]
["UKUPNO А:",{"$nulls":4},{"$f":"SUM(F31:F33)","v":{"v":0,"d":"0.00"}}]

{"sheet":"Građevina-Perimetarski put","index":1,"n_rows":25,"n_cols":6,"rows_kept":25,"merged":[[3,0,4,0],[3,1,4,1],[3,2,4,2],[3,3,4,3],[3,4,4,4],[3,5,4,5],[24,0,24,4]]}
[]
[null,"B)Građevina-parimetarski put"]
[]
["red. br.","Opis","Јedinica mere","Količine","Jedinična cena bez PDV-a","Ukupna cena bez  PDV-a"]
[]
[null,"       1 .  P R I P R E M N I    R A D O V I "]
["1.1.","GEODETSKO OBELEŽAVANjE                                                Obeležavanje trase perimetarskog puta, sva geodetska merenja, tj. prenošenje podataka s projekta na teren i obrnuto, osiguranje, obnavljanje i održavanje obeleženih oznaka na terenu za sve vreme građenja, odnosno do predaje radova investitoru. Obračun se vrši po kilometru trase i priključaka u skladu sa projektima i tehničkim uslovima.","km",2.86,null,{"$f":"E7*D7","v":{"v":0,"d":"0.00"}}]
[" ","             SVEGA PRIPREMNI RADOVI (din) :",{"$nulls":3},{"$f":"F7","v":{"v":0,"d":"0.00"}}]
[]
[null,"        2.    Z E M Lj A N I  R A D O V I"]
["2.1.","ŠIROKI ISKOP                                                                                 Pozicija obuhvata uklanjanje površinskog sloja terena (humusa i starog nasipa) dmin =20 cm kao i mašinski iskop materijala do kota defnisanih projektom. Iskop se vrši mašinskim putem. Pozicija obuhvata i guranje i lokalno deponovanje iskopanog materijala kako bi se upotrebio za nasip ukoliko zadovolji kriterijume iz tehničkih uslova iz ovog projekta. Svi radovi se moraju izvršiti u skladu sa tehničkim uslovima. Merenje i obračun (prema dokaznicama količina, pozicija Fcut) se vrši po m3 iskopanog materijala.","m3"]
[null,"a) uklanjanje površinskog sloja terena ","m3",{"v":5129,"d":"5,129.00"},null,{"$f":"D12*E12","v":{"v":0,"d":"0.00"}}]
[null,"b) mašinski iskop","m3",{"v":3698,"d":"3,698.00"},null,{"$f":"D13*E13","v":{"v":0,"d":"0.00"}}]
["2.2.","IZRADA NASIPA OD LOKALNOG MATERIJALA                                                                                 Pozicija obuhvata izradu nasipa, razastiranje materijala, eventualno kvašenje / sušenje, zbijanje slojeva nasipa (Ev2≥30MPa). Nasip se radi u slojevima 20-30 cm. Obuhvata i sva potrebna kontrolna merenja i ispitivanja. Prema dokaznicama količina, pozicija Fem. Obračun se vrši po m3 izrađenog i sabijenog nasipa.","m3",{"v":12970,"d":"12,970.00"},null,{"$f":"E14*D14","v":{"v":0,"d":"0.00"}}]
[2.3,"UREĐENJE POSTELJICE                                                    Nakon izrade završnog sloja nasipa(useka) izvršiti planiranje i nabijanje ježevima i drugim odgovarajućim sredstvima za nabijanje u skladu sa tehničkim specifikacijama. Posle izvršenog nabijanja posteljica se isplanira sa tačnošću ±2cm i uvalja. Prilikom tog planiranja potrebno je strogo držati se projektovanih poprečnih i podužnih nagiba. Obračun po m2 isplanirane i zbijene posteljice. Prema dokaznicama količina, pozicija Fpos.","m2",{"v":12568,"d":"12,568.00"},null,{"$f":"E15*D15","v":{"v":0,"d":"0.00"}}]
[null,"             SVEGA ZEMLJANI RADOVI (din) :",{"$nulls":3},{"$f":"SUM(F11:F15)","v":{"v":0,"d":"0.00"}}]
[null,"        3.    K O L O V O Z N A   K O N S T R U K C I J A "]
[3.1,"IZRADA NOSEĆEG SLOJA DA 0/31.5 mm                                                                                                     Izrada donjeg nosećeg sloja od drobljenog kamenog agregata frakcije 0/31,5, debljine 20cm. Izrađuje se prema tehničkim uslovima datim u projektu (Ev2≥80MPa). Plaća se po m3 ugrađenog i nabijenog sloja, pozicija u dokaznicama Fdk","m3",{"$f":"D15*0.2","v":{"v":2513.6000000000004,"d":"2,513.60"}},null,{"$f":"E18*D18","v":{"v":0,"d":"0.00"}}]
[3.2,"UREĐENJE BANKINE                                                                 Izrada i planiranje bankine od lokalnog materijala u svemu po projektu i tehničkim uslovima. Obračun i plaćanje se vrši po m2 ","m2",{"v":8569,"d":"8,569.00"},null,{"$f":"E19*D19","v":{"v":0,"d":"0.00"}}]
[null,"             SVEGA KOLOVOZNA KONSTRUKCIJA(din) :",{"$nulls":3},{"$f":"SUM(F18:F19)","v":{"v":0,"d":"0.00"}}]
[]
["1.","PRIPREMNI RADOVI",{"$nulls":3},{"$f":"F8","v":{"v":0,"d":"0.00"}}]
["2.","ZEMLJANI RADOVI",{"$nulls":3},{"$f":"F16","v":{"v":0,"d":"0.00"}}]
["3.","KOLOVOZNA KONSTUKCIJA",{"$nulls":3},{"$f":"F20","v":{"v":0,"d":"0.00"}}]
["UKUPNO B:",{"$nulls":4},{"$f":"SUM(F22:F24)","v":{"v":0,"d":"0.00"}}]

{"sheet":"Odvodnjavanje","index":2,"n_rows":102,"n_cols":6,"rows_kept":102,"merged":[[2,0,2,5],[3,0,4,0],[3,1,4,1],[3,2,4,2],[3,3,4,3],[3,4,4,4],[3,5,4,5],[101,0,101,4]]}
[]
[null,"C) Odvodnjavanje"]
[]
["red. br.","Opis","Јedinica mere","Količine","Jedinična cena bez PDV-a","Ukupna cena bez  PDV-a"]
[]
[null,"1.  P R I P R E M N I    R A D O V I "]
["1.1.","GEODETSKO OBELEŽAVANjE\nGeodetsko obeležavanje trase projektovane kanalizacije sa obeležavanjem položaja šahtova i drugih objekata prema situaciji iz projektne dokumentacije. \nObračun po m' obeležene trase."]
["1.1.1","Kišna kanalizacija","m",{"$f":"D63+D64+D65+D66+D67+D70","v":{"v":1212.8000000000002,"d":"1,212.80"}},null,{"$f":"D8*E8","v":{"v":0,"d":"0.00"}}]
["1.1.2","AB cevni propust Ø600","m",{"v":70.4,"d":"70.40"},null,{"$f":"D9*E9","v":{"v":0,"d":"0.00"}}]
["1.1.3","AB cevni propust Ø1600","m",{"v":144.2,"d":"144.20"},null,{"$f":"D10*E10","v":{"v":0,"d":"0.00"}}]
[" ","             SVEGA PRIPREMNI RADOVI (din) :",{"$nulls":3},{"$f":"SUM(F8:F10)","v":{"v":0,"d":"0.00"}}]
[]
[null,"2.  T E S A R S K I  R A D O V I"]
[null,"RAZUPIRANJE ROVA\nRazupiranje rova. Iskopani rov osigurati odgovarajućom KRINGS oplatom zbog predviđenih širina rova (B = 1.1 - 1.6m). Osiguranje može biti i drvena oplata sa horizontalno postavljenim daskama koje se učvršćuju vertikalnim stubovima i razupiru razupiračima. Radovi u rovovima preko 1,00m dubine moraju se izvoditi u potpuno stabilnom zemljištu i moraju imati ivičnu talpu čija je gornja ivica minimum 5cm iznad površine terena. Radove na razupiranju rova obaviti tako da se omogući bezbedan rad u rovu i na mestima ugradnje šahtova. Jediničnom cenom obuhvaćeni su: nabavka građe, utovar, transport, krojenje, razvoženje duž rova, montaža i održavanje, demontaža, slaganje, utovar i dalji transport. Za vreme izvršenja ovih radova postupati u svemu prema propisima za tu vrstu poslova i Pravilniku o HTZ merama. Kad otpočne zatrpavanje rova, osiguranje odstranjivati postepeno, vodeći pri tome računa o sigurnosti oplate koja još ostaje u upotrebi. Obračun se vrši po m2 podgrađenih površina, za sav rad i potreban materijal. Razupiru se dubine preko 1.0 m prema potrebi."]
["2.1.","Obračun po m2 razuprtog rova","m2",{"v":5709.95,"d":"5,709.95"},null,{"$f":"D15*E15","v":{"v":0,"d":"0.00"}}]
[null,"             SVEGA TESARSKI RADOVI (din) :",{"$nulls":3},{"$f":"F15","v":{"v":0,"d":"0.00"}}]
[]
[null,"3.  Z E M Lj A N I  R A D O V I"]
[]
["3.1.","MAŠINSKI I RUČNI ISKOP ZEMLJE\nMašinski i ručni iskop zemlje III kategorije za kanalske rovove i reviziona okna. Iskop izvršiti u svemu prema priloženim crtežima, tehničkim propisima i uputstvima nadzornog organa. Bočne strane rova moraju biti pravilno odsečene, a dno rova fino isplanirano sa padom koji je naznačen u projektu. Prilikom iskopa odbacivanje zemlje vršiti na 1m od ivice rova. U cenu pozicije je uračunato i eventualno crpljenje podezmne i atmosferske vode. Pre polaganja cevi izvršiti nabijanje podtla do modula stišljivosti Ms=10,000 kN/m2. Stepen zbijenosti podtla treba proveriti preko opita kružnom pločom, pri čemu treba ostvariti minimum 95% od zahtevane vrednosti zbijenosti slojeva. Višak zemlje prevesti kolicima, nasuti i nivelisati teren ili utovariti na kamion i odvesti na gradsku deponiju. Predviđa se 80% mašinskog i 20% ručnog iskopa.\nObračun po m3 iskopanog rova"]
["3.1.1","Dubina rova od 0-2m"]
[null,"mašinksi iskop 80%","m3",{"v":2486.65,"d":"2,486.65"},null,{"$f":"D22*E22","v":{"v":0,"d":"0.00"}}]
[null,"ručni iskop 20%","m3",621.66,null,{"$f":"D23*E23","v":{"v":0,"d":"0.00"}}]
["3.1.2","Dubina rova od 2-4m"]
[null,"mašinksi iskop 80%","m3",961.78,null,{"$f":"D25*E25","v":{"v":0,"d":"0.00"}}]
[null,"ručni iskop 20%","m3",240.45,null,{"v":0,"d":"0.00"}]
["3.2.","PLANIRANJE DNA ROVA\nFino planiranje dna rova u odgovarajućem nagibu za polaganje kanalizacionih cevi. Dno rova poravnati prema niveleti koja je data u projektnoj dokumentaciji (sa tačnošću +/-1cm) i nabiti ručnim nabijačem ili vibro pločom dok se ne postigne potreban zbijenost podloge, minimum 15Mpa.\nObračun po m2 isplaniranog rova.","m2",{"v":1672.56,"d":"1,672.56"},null,{"v":0,"d":"0.00"}]
["3.3.","IZRADA POSTELJICE OD PESKA\nNabavka, transport materijala i izrada posteljice od peska (granulacije 0-4mm). Posteljicu izraditi sa sa tačnošću +/-1cm  prema projektovanim kotama i nagibima i nabiti ručnim nabijačem ili vibro pločom dok se ne postigne potrebna zbijenost podloge. Debljina sloja d=10cm.\nObračun po m3 zbijene posteljice","m3",167.26,null,{"v":0,"d":"0.00"}]
["3.4.","ZATRPAVANJE ROVA PESKOM \nNabavka, transport i nabijanje sloja peska u rovu (granulacije 0-4mm). Nakon izrade posteljice i posle završene montaže cevovoda ubaciti u rov, sa podbijanjem uz cev i nabijanjem kao za posteljicu, do 70% relativne zbijenosti, pesak tako da njegova debljina iznad temena cevi iznosi 30cm. Nasipanje peskom izvršiti po celoj širini rova izuzev kod spojeva cevovoda. Nasipanje i nabijanje izvesti u slojevima od po 15cm.\nObračun po m3 ugrađenog i nabijenog materijala","m3",914.63,null,{"v":0,"d":"0.00"}]
[3.5,"ZATRPAVANJE ROVA ŠLJUNKOM\nNasipanje prirodnog šljunka (granulacije 0-63mm) u rovu ispod izgrađenih kolovoznih površina, u celoj visini do donjeg stroja kolovozne konstrukcije. Nasipanje izvesti u slojevima od po 30cm. Jediničnom cenom je obuhvaćena nabavka, transport, nasipanje u rov i nabijanje šljunka do potrebne zbijenosti, 95-98% po Proktoru. Jediničnom cenom obuhvaćeno je i pribavljanje ateasta o zbijenosti slojeva ispod budućih saobraćajnih površina.\nObračun po m3 ugrađenog i nabijenog materijala","m3",{"v":45,"d":"45.00"},null,{"v":0,"d":"0.00"}]
[3.6,"ZATRPAVANJE ROVA ZEMLJOM IZ ISKOPA\nZatrpavanje rova i prostora oko objekata probranim materijalom iz iskopa, a nakon završenog ispitivanja cevovoda tj. nakon završetka izgradnje objekata. Nasipanje probranim materijalom iz iskopa izvršiti u slojevima maksimalne visine 30cm, i nabiti, potrebna zbijenost slojeva treba da bude 95% po Proktoru. \nObračun po m3 ugrađenog i nabijenog materijala","m3",{"$f":"D22+D23+D25+D26-D30-D29-D28","v":{"v":3183.6499999999996,"d":"3,183.65"}},null,{"v":0,"d":"0.00"}]
[3.7,"TRANSPORT VIŠKA ZEMLJE\nTransport viška zemlje na daljinu (do 10km) i na deponiju koju odredi nadzorni organ. U jediničnu cenu uračunati utovar, istovar, prevoz i grubo planiranje zemlje na deponiji.\nObračun po m3 transportovane zemlje u rastresitom stanju (1.25 %).","m3",{"$f":"D30+D29+D28","v":{"v":1126.8899999999999,"d":"1,126.89"}},null,{"v":0,"d":"0.00"}]
[3.8,"IZRADA TAMPON SLOJA OD PESKA\nNabavka, transport i ugradnja tampon sloja peska ispod baze šahta debljine d=10 cm. Pre nego se pristupi izradi tampon sloja potrebno je dobro uvaljati površinu dna iskopa potrebnom mehanizacijom. Tampon sloj se izvodi u jednom horizontalnom sloju sa nabijanjem, na način koji obezbeđuje da modul zbijenosti dobijen iz opita pločom iznosi minimum Mv=20 MPa.  \nObračun po m3  izvedenog tampon sloja","m3",{"v":45,"d":"45.00"},null,{"v":0,"d":"0.00"}]
[3.9,"IZRADA TAMPON SLOJA OD ŠLJUNKA\nNabavka, transport i ugradnja tampon sloja šljunka ispod donjih ploča AB šahtova i izlivnih građevina. Pre nego se pristupi izradi tampon sloja potrebno je dobro uvaljati površinu dna širokog iskopa potrebnom mehanizacijom. Tampon sloj se izvodi u dva horizontalna sloja sa nabijanjem, na način koji obezbeđuje da modul zbijenosti dobijen iz opita pločom iznosi minimum Mv=20 MPa.  \nObračun po m3 izvedenog tampon sloja"]
["3,9,1","AB šaht, debljine d=20cm","m3",{"v":5,"d":"5.00"},null,{"$f":"D35*E35","v":{"v":0,"d":"0.00"}}]
["3,9,2","Ulivna građevina, debljine d=40cm","m3",{"v":10,"d":"10.00"},null,{"$f":"D36*E36","v":{"v":0,"d":"0.00"}}]
["3,9,3","Izlivna građevina (2 komada), debljine d=40cm","m3",{"v":20,"d":"20.00"},null,{"$f":"D37*E37","v":{"v":0,"d":"0.00"}}]
["3,9,4","AB cevni propust Ø1600, d=30cm","m3",{"v":86.5,"d":"86.50"},null,{"$f":"D38*E38","v":{"v":0,"d":"0.00"}}]
[null,"             SVEGA ZEMLJANI RADOVI (din) :",{"$nulls":3},{"$f":"SUM(F22:F38)","v":{"v":0,"d":"0.00"}}]
[]
[null,"4.  B E T O N S K I  I  A B  R A D O V I "]
[4.1,"SLOJ ZA IZRAVNANJE                                                                                         Nabavka, transport materijala i izrada sloja od nearmiranog betona debljine 10 cm ispod donjih ploča AB šahtova i izlivnih građevina. Kvalitet betona C12/15. U jediničnu cenu je uračunat sav rad i materijal za spravljanje, ugrađivanje i negu betona i potrebna oplata.\nObračun po m3 "]
["4.1.1","AB šaht","m3",{"v":0.6,"d":"0.60"},null,{"$f":"D43*E43","v":{"v":0,"d":"0.00"}}]
["4.1.2","Ulivna građevina (AB cevasti propust)","m3",{"v":0.6,"d":"0.60"},null,{"v":0,"d":"0.00"}]
["4.1.3","Izlivna građevina (2 komada)","m3",{"v":1.2,"d":"1.20"},null,{"v":0,"d":"0.00"}]
["4.1.4","AB cevni propust Ø1600","m3",{"v":28.9,"d":"28.90"},null,{"v":0,"d":"0.00"}]
[4.2,"BETONSKA PODLOGA ZA ŠLIC KANALE\nNabavka i transport materijala i betoniranje podloge za montažu šlic kanala za linijsku odvodnju marke C20/25, minimalne debljine 15cm mereno od ivice kanala sa sve tri strane. Sve radove na izradi betonske podloge uraditi u skladu sa detaljom i prema uputstvima odobrenog proizvođača za odgovarajuću klasu opterećenja (D400). Gornji rub šlica montirati u nivou koji je 3 - 5 mm ispod završne kote okolne površine. U jediničnu cenu je uračunat sav rad i materijal za spravljanje, ugrađivanje i negu betona i potrebna oplata.\nObračun po m3 ","m3",{"v":268.8,"d":"268.80"},null,{"v":0,"d":"0.00"}]
[4.3,"BETONSKA PODLOGA ZA AB CEVNI PROPUST Ø1600\nNabavka i transport materijala i betoniranje podloge za montažu AB cevnog propusta ispod poletno-sletne staze, marke C20/25, promenjlive debljine (od 20-50cm). U jediničnu cenu je uračunat sav rad i materijal za spravljanje, ugrađivanje i negu betona i potrebna oplata.\nObračun po m3 ","m3",{"v":90.8,"d":"90.80"},null,{"v":0,"d":"0.00"}]
[4.4,"AB ŠAHT\nIzrada armirano betonskog šahta, betonom klase C35/45 V4, u glatkoj oplati, donja ploča debljine d=30cm, zidovi i gornja ploča debljine d=25cm. Beton na spojevima oplate zidova odmah nakon demontaže oplate obrusiti jer se zidovi dodatno ne obrađuju. U jediničnu cenu ulazi i izrada kinete od nabijenog betona klase C12/15, kinetu gletovati do crnog sjaja. U cenu ulazi: pravljenje/šalovanje otvora za prolaz cevi, nabavka i montaža penjalica DIN 1212, zaptivanje spoja cevi i AB zida prema detalju, izrada i gletovanje kinete, upotreba oplate. Zaptivanje prodora cevi kroz zid izvršiti pomoću jednokomponentne poliuretanske zaptivne mase i bubreće trake, a zatvaranje otvora između zida i cevi sa unutrašnje strane izvšiti jednokomponentnom trajno plastičnon zaptivnom masom i reparaturnim malterom.\nObračun po dužnom m3","m3",{"v":25,"d":"25.00"},null,{"v":0,"d":"0.00"}]
[4.5,"ARMIRANOBETONSKE IZLIVNE GRAĐEVINE                                                             Nabavka materijala i izrada AB zidova i ploča objekta izlivne građevine, betonom klase C35/45 V4, u glatkoj oplati. Beton na spojevima oplate zidova odmah nakon demontaže oplate obrusiti jer se zidovi dodatno ne obrađuju. Zaptivanje prodora cevi kroz zid izvršiti pomoću jednokomponentne poliuretanske zaptivne mase i bubreće trake, a zatvaranje otvora između zida i cevi sa unutrašnje strane izvšiti jednokomponentnom trajno plastičnon zaptivnom masom i reparaturnim malterom. U cenu ulazi: pravljenje/šalovanje otvora za prolaz cevi, zaptivanje spoja cevi i AB zida prema detalju, upotreba oplate. \nObračun po m³"]
[null,"Izlivna građevina (2 komada)","m3",{"v":20,"d":"20.00"},null,{"$f":"D51*E51","v":{"v":0,"d":"0.00"}}]
[4.6,"ARMIRANOBETONSKA ULIVNA GRAĐEVINA                                                             Nabavka materijala i izrada AB zidova i ploča objekta ulivne građevine, betonom klase C35/45 V4, u glatkoj oplati. Beton na spojevima oplate zidova odmah nakon demontaže oplate obrusiti jer se zidovi dodatno ne obrađuju. Zaptivanje prodora cevi kroz zid izvršiti pomoću jednokomponentne poliuretanske zaptivne mase i bubreće trake, a zatvaranje otvora između zida i cevi sa unutrašnje strane izvšiti jednokomponentnom trajno plastičnon zaptivnom masom i reparaturnim malterom. U cenu ulazi: pravljenje/šalovanje otvora za prolaz cevi, zaptivanje spoja cevi i AB zida prema detalju, upotreba oplate. \nObračun po m³"]
[null,"Ulivna građevina (AB cevasti propust)","m3",{"v":10,"d":"10.00"},null,{"$f":"D53*E53","v":{"v":0,"d":"0.00"}}]
[4.7,"ARMATURA\nNabavka, transport, ispravljanje, sečenje, savijanje i montaža rebraste armature B500C (EN 10080), oblika, rasporeda i dimenzija prema planovima armature.\nObračun po kg ugrađene armature"]
["4.7.1","AB šaht  - prečnika do Ø12","kg",{"v":2500,"d":"2,500.00"},null,{"$f":"D55*E55","v":{"v":0,"d":"0.00"}}]
["4.7.2","Ulivna građevina (AB cevasti propust) - prečnika do Ø12","kg",{"v":1000,"d":"1,000.00"},null,{"$f":"D56*E56","v":{"v":0,"d":"0.00"}}]
["4.7.3","Izlivna građevina (2 komada) - prečnika do Ø12","kg",{"v":2000,"d":"2,000.00"},null,{"$f":"D57*E57","v":{"v":0,"d":"0.00"}}]
[null,"             SVEGA BETONSKI I AB RADOVI (din) :",{"$nulls":3},{"$f":"SUM(F42:F57)","v":{"v":0,"d":"0.00"}}]
[]
[null,"5.  M O N T A Ž N I  R A D O V I"]
["5.1.","PP-B KANALIZACIONE CEVI\nNabavka, transport, raznošenje duž trase, i ugrađivanje PP-B dvoslojnih korugovanih cevi, sa unutrašnjim glatkim i spoljašnjim trapezoidnim slojem, obodne čvrstoće SN10 (≥10kN/m2) i fleksibilnošću prstena ≥30%, u efektivnim dužinama od 6 metara (bez mufa), cevi PIPELIFE PRAGMA PP SN10 ili slično. Obodna čvrstoća mufa (spojnog elementa) mora biti ista kao deklarisana nosivost cevi tj. u klasi SN10, sa matrično brizganim zaptivnim prstenom od EPDM koji je integralni deo svake cevi. Za dimenzije do DN400 muf frikciono zavaren, za dimenzije preko DN500 muf koekstrudiran sa dodatnim poliesterskim prstenom radi osiguravanja vodonepropusnosti i prstenaste krutosti mufa. Boja cevi različita od crne, kao garancija korišćenja nerecikliranog repromaterijala.\nCevi se polažu na peščanu posteljicu u skladu sa uputstvima proizvođača, i spajaju se pomoću integrisanih spojnih elemenata. Zasipavanje iskopa i nabijanje zasipa treba obaviti u skladu s uputsvima proizvođača, u zavisnosti od karakteristika tla i prisutnosti podzmene vode. Cev mora ležati jednoliko celom dužinom.\nSvojstva materijala za izradu cevi moraju biti u skladu sa standardima: prEN13476-1, prEN13476-3, EN ISO 9969, EN 476, EN 1610, ENV 1046. \nSvi zaptivni elementi moraju biti izrađeni u skladu sа EN 681-1. Uz cevi dostaviti Uverenje o kvalitetu Mašinskog fakulteta u Beogradu.\nUgradnja cevovoda mora biti u saglasnosti sa zahtevima koji su definisani SRPS EN 1610 standarom.\nObračun po metru ugrađenog cevovoda navedene vrste i veličine."]
[null,"DN/ID (inside diametar)-po unutrašnjem prečniku"]
["5.1.1","DN/ID 300 : 343/299 mm-OD/ID - veze šlic kanala","m",{"v":109,"d":"109.00"},null,{"$f":"D63*E63","v":{"v":0,"d":"0.00"}}]
["5.1.1","DN/ID 300 : 343/299 mm-OD/ID ","m",{"v":237.5,"d":"237.50"},null,{"v":0,"d":"0.00"}]
["5.1.2","DN/ID 400 : 458/398 mm-OD/ID ","m",{"v":169.6,"d":"169.60"},null,{"v":0,"d":"0.00"}]
["5.1.3","DN/ID 500 : 573/498 mm-OD/ID  ","m",{"v":226.1,"d":"226.10"},null,{"v":0,"d":"0.00"}]
["5.1.4","DN/ID 600 : 688/597 mm-OD/ID  ","m",{"v":386.1,"d":"386.10"},null,{"v":0,"d":"0.00"}]
["5.2.","PP-B REVIZIONI SILAZI\nNabavka, transport i ugradnja brizganih Pipelife PRO1000 PP revizionih silaza od nerecikliranog polipropilena PP-B (polipropilen kopolimer), sertifikovan od strane nezavisne institucije, sa ugrađenim penjalicama i mogućnošću korekcije na projektovanu visinu smanjivanjem visine usponskih elemenata. Konstrukcija šahta je od pojedinačnih brizganih elemenata sa orebrenom spoljnom površinom međusobno povezanih zavarivanjem ili elastomernom zaptivkom, boje različite od crne, uniformne u smislu nijansi i intenziteta. Konfiguracija uglova priključaka od 90 do 270 stepeni (u smeru kazaljke na satu) u delu baze sa maksimalnim prečnikom priključka DN 600, teleskopskim priključkom i dobro formiranom kinetom. Kaskada od 0,50 do 6m. Garantovana vodonepropustnost šahta i veze sa kanalizacionim sistemom, pomoću mufa i zaptivnog prstena. Kompatibilnost sa profilisanim cevima od PP-B-a i glatkim cevima od PVC-a. Obavezno dostavljanje izveštaja sa ispitivanja u skladu sa standardom SRPS EN 13598-2, a proizvodnja mora biti u skladu sa ISO 9001 standardom. Jediničnom cenom obuhvaćena je nabavka transport i montaža baza šahtova, usponskih elemenata sa ugrađenim penjalicama (EN 13101) i konusnih završnih elemenata sa teleskopskim nastavkom.\nObračun po komadu ugrađenog šahta.","kom",{"v":19,"d":"19.00"},null,{"v":0,"d":"0.00"}]
[5.3,"PEHD KANALIZACIONE CEVI\nNabavka, transport i montaža cevi od PEHD–100 sa glatkom unutrašnjom i profilisanom spoljašnjom površinom po DIN 16961 I EN 13476–3 B standardu. Cevi za gravitaciono podzemno odvođenje i kanalizaciju, obodne krutosti 8 kN/m². Spajanje cevi izvesti elektro–fuzionom spojnicom integrisanom u samoj spojnici cevi (samo–centrirajuća spojnica integrisana na samoj cevi). Cevi se isporučuju u standardnoj dužini od 6m. Ugradnja cevovoda mora biti u saglasnosti sa zahtevima koji su definisani SRPS EN 1610 standarom.\nProračun temene/obodne krutosti po EN ISO 9969.\nStatički proračun cevi po ATV-DVWK-A 127.\nZavarivanje cevi po DSV 2207\nObračun je po metru dužnom ugrađene cevi"]
["5.3.1","DN/ID 1800","m",{"v":84.5,"d":"84.50"},null,{"$f":"D70*E70","v":{"v":0,"d":"0.00"}}]
[5.4,"ŠLIC KANALI ZA LINIJSKU ODVODNJU - TIP 1                                                                               Nabavka ACO Qmax 225, odvodnog kanala velikog hidrauličkog kapaciteta sa Q-Flow ulivnim profilom od pocinkovanog čelika, klase opterećenja A15 do F900 prema SRPS EN 1433. Telo kanala je okruglog preseka , prečnika 225 mm, ukupne visine 480 mm , proizvedeno iz polietilena srednje gustine (MDPE), sa upojnim Q-FLOW profilom od pocinkovanog čelika širine uliva 26 mm, ukupne površine upojnih otvora 178 cm2/m. Specifična konstrukcija kanala omogućava izvođenje neprekinute betonske grede ispod ulivnog profila, čime se povećava statička krutost celog sistema. ACO Qmax kanali isporučuju se sa spojnim vijcima, a integrisana neoprenska zaptivka osigurava vodonepropusnost spojeva kanala. Dužina kanala je 2000 mm. Težina 17,8 kg. \nObračun po komadu","kom",{"v":425,"d":"425.00"},null,{"v":0,"d":"0.00"}]
[5.5,"ŠLIC KANALI ZA LINIJSKU ODVODNJU - TIP 2    \nNabavka ACO Qmax 350, odvodnog kanala velikog hidrauličkog kapaciteta sa Q-Flow ulivnim profilom od pocinkovanog čelika, klase opterećenja A15 do F900 prema SRPS EN 1433. Telo kanala je okruglog preseka , prečnika 350 mm, ukupne visine 600 mm , proizvedeno od polietilena srednje gustine (MDPE), sa upojnim Q-FLOW profilom od pocinkovanog čelika širine uliva 26 mm, ukupne površine upojnih otvora 178 cm2/m. Specifična konstrukcija kanala omogućava izvođenje neprekinute betonske grede ispod ulivnog profila, čime se povećava statička krutost celog sistema. ACO Qmax kanali isporučuju se sa spojnim vijcima, a integrisana neoprenska zaptivka osigurava vodonepropusnost spojeva kanala. Dužina kanala je 2000 mm. Težina 24,0 kg. \nObračun po komadu        ","kom",{"v":32,"d":"32.00"},null,{"v":0,"d":"0.00"}]
[5.6,"PRELAZNI ELEMENTI\nNabavka, transport i montaža ACO prelaznih elemenata sa Qmax 225 na Qmax 350. \nObračun po komadu","kom",{"v":5,"d":"5.00"},null,{"v":0,"d":"0.00"}]
[5.7,"REVIZIONI ELEMENTI TIP 1\nNabavka ACO Qmax revizionog elementa za Qmax 150, 225 i 350 sa pokrivnom rešetkom od livenog gvožđa, klase opterećenja A15 do D400 prema SRPS EN 1433, ukupne visine 640mm. Telo revizionog elementa, kvadratnog oblika 480 x 480 mm, visine 540mm, proizvedeno je iz polietilena srednje gustine (MDPE), sa pokrivnom rešetkom od livenog gvožđa (duktilni liv). Građevinska dimenzija okvira poklopca 565 x 565mm, visina okvira 100mm, veličina poklopca 440 x 440mm, širina otvora 10mm.Težina 48,0kg. \nObračun po komadu","kom",{"v":15,"d":"15.00"},null,{"v":0,"d":"0.00"}]
[5.8,"REVIZIONI ELEMENTI TIP 2\nNabavka ACO Qmax revizionog elementa s mogućnošću izliva za Qmax 150, 225 i 350 sa pokrivnom rešetkom od livenog gvožđa, klase opterećenja A15 do D400 prema SRPS EN 1433, ukupne visine 1095 mm. Telo revizionog elementa ima mogućnost spoja izlivne cevi DN150, DN200 ili DN300, kvadratnog je oblika 480 x 480 mm, visine 995 mm, proizvedeno je iz polietilena srednje gustine (MDPE), sa pokrivnom rešetkom od livenog gvožđa (duktilni liv). Građevinska dimenzija okvira poklopca 565 x 565 mm, visina okvira 100 mm, veličina poklopca 440 x 440 mm, širina otvora 10 mm. Težina 52,0 kg. \nObračun po komadu.   ","kom",{"v":17,"d":"17.00"},null,{"v":0,"d":"0.00"}]
[5.9,"ŠAHT POKLOPCI\nNabavka transport i montaža liveno-gvozdenog poklopca za opitno opterecenje od 400 kN, Ø600 mm, ACO CityTop FIX šaht poklopac od livenog gvožđa za klasu opterećenja D400, svetli otvor 605mm, bez ventilacije. Ram tip Fix, visina 10cm, flanša prečnika 78cm, sa uloškom, neofarban. Težina 66kg iznad revizionog okna. Jediničnom cenom pozicije su obuhvaćeni i svi prethodni i pripremni radovi, potrebna radna snaga i spojni i vezni materijal. \nObračun po komadu ugrađenog poklopca.","kom",{"v":20,"d":"20.00"},null,{"v":0,"d":"0.00"}]
["5.10","AB RASTERETNI PRSTENOVI\nNabavka, transport i montaža armirano betonskih prstenova unutrašnjeg prečnika 62.5cm za ugradnju LG šaht poklopaca za klasu opterećenja D400. \nObračun po komadu komplet montiranog armirano-betonskog prstena.","kom",{"v":20,"d":"20.00"},null,{"v":0,"d":"0.00"}]
["5.11","LG PENJALICE\nNabavka i ugradnja liveno gvozdenih penjalica za silaz u šahtove prema DIN 1212. Penjalice se ugrađuju na vertikalnom odstojanju od 30cm i naizmenično smaknuto za po 5cm levo i desno od ose postavljanja. Penjalice je potrebno premazati bitulitom kao zaštitom od korozije.\nObračun po komadu ugrađenih penjalica.","kom",{"v":8,"d":"8.00"},null,{"v":0,"d":"0.00"}]
["5.12","AB CEVNI PROPUST Ø1600\nNabavka, transport i montaža AB cevi marke C 30/37, a za izradu propusta ispod poletno-sletne staze i perimetarskog puta . Predviđena je montaža vibropresovane AB cevi sa falcom, čistog otvora 1600mm, debljine zida 170mm. Spajanje cevi se vrši specijalnom bitumenskom masom koja obezbeđuje potpuno zaptivanje i elastičan spoj. \nObračun po metru dužnom izvedenog propusta.","m",{"v":167,"d":"167.00"},null,{"v":0,"d":"0.00"}]
["5.13","AB CEVNI PROPUST Ø600\nNabavka, transport i montaža AB cevi marke C 30/37, a za izradu propusta ispod servisnog puta. Predviđena je montaža livene, jednostruko armirane AB cevi sa falcom, čistog otvora 600mm, debljine zida 65mm. Spajanje cevi se vrši specijalnom bitumenskom masom koja obezbeđuje potpuno zaptivanje i elastičan spoj. \nObračun po metru dužnom izvedenog propusta.","m",{"v":70.4,"d":"70.40"},null,{"v":0,"d":"0.00"}]
["5.14","ŽABLJI POKLOPCI\nNabavka, transport i montaža žabljeg poklopca (nepovratna plastična klapna) za montažu na izlivnom kraju cevovoda. Poklopac treba da bude izrađen od plastičnog materijala, i adekvatan za montažu na PP i HDPE cevi.\nObračun po komadu"]
["5.14.1","DN/ID 600 (montaža na PP cev)","kom",{"v":1,"d":"1.00"},null,{"$f":"D82*E82","v":{"v":0,"d":"0.00"}}]
["5.14.2","DN/ID1800 (montaža na HDPE cev)","kom",{"v":1,"d":"1.00"},null,{"$f":"D83*E83","v":{"v":0,"d":"0.00"}}]
[null,"             SVEGA MONTAŽNI RADOVI (din) :",{"$nulls":3},{"$f":"SUM(F62:F83)","v":{"v":0,"d":"0.00"}}]
[]
[null,"6.  R A Z N I   R A D O V I"]
[6.1,"ISPIRANJE MREŽE\nIspiranje cevovoda uz odstranjivanje svih grubih predmeta i prljavštine iz instalacija. Ispiranje se vrši pomoću autocisterne, a pre hidrauličkog ispitivanja.\nObračun po metru dužnom ispranog cevovoda bez obzira na prečnik.","m",{"$f":"D8+D9+D10","v":{"v":1427.4000000000003,"d":"1,427.40"}},null,{"$f":"D87*E87","v":{"v":0,"d":"0.00"}}]
[6.2,"HIDRAULIČKO ISPITIVANJE MREŽE\nHidrauličko ispitivanje cevovoda na vododrživost izvršiti prema tehničkim uslovima za ovu vrstu radova uz obavezno prisustvo nadzornog organa. Isptivanje cevovoda mora biti u saglasnosti sa zahtevima koji su definisani SRPS EN 1610 standarom.\nObračun po metru dužnom ispitanog cevovoda bez obzira na prečnik.","m",{"$f":"D87","v":{"v":1427.4000000000003,"d":"1,427.40"}},null,{"v":0,"d":"0.00"}]
[6.3,"OSIGURANJE KOSINA\nNa mestu izliva u jarugu izvšiti osiguranje kosina i dna kanala (recipijenta) kao zaštitu kanala od erozije na mestu izgradnje izlazne građevine. Osiguranje izvrštiti izradom obloge od lomljenog kamena dimenzija d=25-30cm, koji se polaže na sloju šljunka debljine d=20cm. Za izradu zaštite kanala treba koristiti krupniji kamen približno istih dimenzija koje će se na sastavcima i na licu mesta dotereti čekićem. Svaki kamen mora imati minimalnu visinu od 20 cm, sastavci ne smeju biti veći od 2 cm niti se lica smeju čivijati. Na prethodno otkopanu i planiranu posteljicu polaže se sloj šljunka debljine 20 cm. Veličina zrna šljunka ne sme biti manja od 0,5 cm niti veća od 4 cm. Po izvršenom polaganju kamena, kaldrma će se nabiti ručnim maljem da bi se učvrstila u sloju šljunka i da joj se poravnja gornja površina, nakon ovoga spojnice se moraju očistiti i oprati do dubine od 10 cm i zaliti cementnim malterom razmere 1:3 koji se mora negovati do očvršćavanja. U cenu pozicije uračunati sav potreban rad i materijal (šljunak, malter i kamen). Osiguranje kosina uraditi po dnu i sa bočnih strana u dužini od minimum 5m sa leve i desne strane od izlivne (ulivne) građevine.\nObračun po komadu","kom",{"v":3,"d":"3.00"},null,{"v":0,"d":"0.00"}]
[6.4,"GEOTEKSTIL\nNabavka, transport i ugradnja mehanički obrađenog (netkanog) geotekstila od poliestarskih vlakana, mase 200g/m2, debljine 1mm, zatezne čvrstoće (uzdužna+poprečna) 1kN/m. Geotekstil se polaže  ispod sloja šljunka u zoni osiguranja obale jaruge na mestu izgradnje ulivne (izlivne) građevine. \nObračun po m2 geotekstila","m2",{"v":30,"d":"30.00"},null,{"v":0,"d":"0.00"}]
[6.4,"REŠETKA OD ČELIČNIH PROFILA\nNabavka materijala i izrada rešetke od čeličnih profila na ulivnoj građevini. Na donjoj polovini otvora ulivne građevine postaviti rešetku od čeličnih profila sa otvorima od 6cm, približnih dimenzija 300x200cm. Sve čelične profile zaštititi antikorozionim premazom.\nObračun po komadu montirane rešetke.","kom",{"v":1,"d":"1.00"},null,{"v":0,"d":"0.00"}]
[6.5,"GEODETSKO SNIMANJE\nIzvođač je u obavezi da po završenoj montaži cevovoda izvrši geodetsko snimanje izvedene kanalizacije. Snimanjem se utvrđuje horizontalni i vertikalni položaj kolektora i objekata na njemu tj. položaj revizionih okana, njihova rastojanja (dužina deonica), prečnik cevi po deonicama, kote dna revizionih okana, kao i kote dna i prečnici svih cevi koje se pojavljuju u revizionom oknu. Snimak mora biti urađen od strane ovlašćenog pravnog lica. Podaci o snimanju i grafička prezentacija rezultata snimanja su sastavni deo dokumentacije za tehnički prijem. Snimanje se vrši u prisustvu nadzornog organa i dokumentacija koja se predaje katastru se daje na uvid nadzornom organu. Na osnovu snimljene mreže Izvođač radova će pribaviti odgovarajuću potvrdu od nadležne komunalne kuće i kopiju plana snimljene kanalizacije.\nObračun po dužnom metru snimljene instalacije bez obzira na prečnik cevovoda","m",{"$f":"D88","v":{"v":1427.4000000000003,"d":"1,427.40"}},null,{"v":0,"d":"0.00"}]
[null,"             SVEGA RAZNI RADOVI (din) :",{"$nulls":3},{"$f":"SUM(F87:F92)","v":{"v":0,"d":"0.00"}}]
[]
[]
["1."," P R I P R E M N I     R A D O V I ",{"$nulls":3},{"$f":"F11","v":{"v":0,"d":"0.00"}}]
["2.","T E S A R S K I    R A D O V I",{"$nulls":3},{"$f":"F16","v":{"v":0,"d":"0.00"}}]
["3."," Z E M Lj A N I    R A D O V I",{"$nulls":3},{"$f":"F39","v":{"v":0,"d":"0.00"}}]
["4."," B E T O N S K I   I  A B   R A D O V I ",{"$nulls":3},{"$f":"F58","v":{"v":0,"d":"0.00"}}]
["5.","  M O N T A Ž N I    R A D O V I",{"$nulls":3},{"$f":"F84","v":{"v":0,"d":"0.00"}}]
["6."," R A Z N I    R A D O V I",{"$nulls":3},{"$f":"F93","v":{"v":0,"d":"0.00"}}]
["U K U P N O:",{"$nulls":4},{"$f":"SUM(F96:F101)","v":{"v":0,"d":"0.00"}}]

{"sheet":"Markacija","index":3,"n_rows":9,"n_cols":6,"rows_kept":9,"merged":[[2,0,3,0],[2,1,3,1],[2,2,3,2],[2,3,3,3],[2,4,3,4],[2,5,3,5],[8,0,8,4]]}
[]
[null,"D) Markacija"]
["red. br.","Opis","Јedinica mere","Količine","Jedinična cena bez PDV-a","Ukupna cena bez  PDV-a"]
[]
[null,"        1.    HORIZONTALNA SIGNALIZACIJA"]
[]
["1.1.","IZRADA BELE REFLEKTUJUĆE BOJE                                                                 Bela reflektujuća boja za oznake ose i ivica poletno sletne staze, oznake poletno sletne staze, praga i oznake zone dodira i oznake ciljane tačke dodira ","m2",{"v":2295.8559,"d":"2,295.86"},null,{"$f":"D7*E7","v":{"v":0,"d":"0.00"}}]
["1.2.","IZRADA ŽUTE REFLEKTUJUĆE BOJE                                                                                  Žuta reflektujuća boja za oznake ose ivica rulne staze, okretnice i pozicije za čekanje ","m2",{"v":173.779,"d":"173.78"},null,{"$f":"D8*E8","v":{"v":0,"d":"0.00"}}]
["             SVEGA HORIZONTALNA SIGNALIZACIJA (din)  D:",{"$nulls":4},{"$f":"F7+F8","v":{"v":0,"d":"0.00"}}]

{"sheet":"Ograda","index":4,"n_rows":59,"n_cols":6,"rows_kept":59,"merged":[[3,0,4,0],[3,1,4,1],[3,2,4,2],[3,3,4,3],[3,4,4,4],[3,5,4,5],[51,0,51,3],[58,0,58,4]]}
[]
[null,"E) Ograda"]
[]
["red. br.","Opis","Јedinica mere","Količine","Jedinična cena bez PDV-a","Ukupna cena bez  PDV-a"]
[]
[null,"1.ZEMLJANI RADOVI"]
["01.01.","Kombinovani mašinski (95%) i ručni iskop (5%) zemlje III  kategorije za temelje samce 30x30 x110 i parapetnu gredu širine 25cm , dubine 40cm, sa deponovanjem materijala iz iskopa na stranu bez odvoza radi kasnijeg korišćenja kod planiranja terena nakon završenih radova. Bočne strane pravilno odseći a dno nivelisati. "]
[null,"Obračun po m³.","m³",{"v":300,"d":"300.00"},null,{"$f":"E8*D8","v":{"v":0,"d":"0.00"}}]
["01.02.","Nasipanje i nabijanje zdrave zemlje iz iskopa oko ograde, u slojevima od po 15 - 20 cm. Nabijanje izvršiti potrebnog modula stišljivosti."]
[null,"Obračun po m³.","m³",{"v":300,"d":"300.00"},null,{"$f":"E10*D10","v":{"v":0,"d":"0.00"}}]
["01.03.","Nabavka, nasipanje i nabijanje prirodne mešavine šljunka u sloju od  10 cm, ispod temelja  . Nasuti šljunak planirati i mehaničkim putem nabiti do potrebnog modula stišljivosti."]
[null,"Obračun po m³.","m³",{"v":15,"d":"15.00"},null,{"$f":"E12*D12","v":{"v":0,"d":"0.00"}}]
[{"$nulls":3},"UKUPNO:",null,{"$f":"F8+F10+F12","v":{"v":0,"d":"0.00"}}]
[]
[null,"2.BETONSKI RADOVI"]
["02.01.","Betoniranje armirano betonskih temelja za  stubove ograde            d=30x30cm, h= 90cm  ,i parapetnog zida ograde d=15cm ,h=40cm, armiranim betonom MB 30. Betoniranje ,van zemlje h=10cm, vršiti u potrebnoj glatkoj oplati. "]
[null,"Obračun po m³.","m³",{"v":267,"d":"267.00"},null,{"$f":"E17*D17","v":{"v":0,"d":"0.00"}}]
["02.02.","Betoniranje armirano betonskih temelja dvokrilne kapije.d= 0,60x 0,60 , h=80cm, armiranim betonom MB 30. "]
[null,"Obračun po m³.","m³",{"v":0.6,"d":"0.60"},null,{"$f":"E19*D19","v":{"v":0,"d":"0.00"}}]
[{"$nulls":3},"UKUPNO:",null,{"$f":"F17+F19","v":{"v":0,"d":"0.00"}}]
[]
[null,"3.ARMIRAČKI RADOVI"]
["03.01.","Nabavka, čišćenje, mašinsko ispravljanje, sečenje i savijanje i ručna montaža rebrastog betonskog gvožđa, a u svemu prema detaljima i statičkom proračunu. "]
[null,"Obračun po kg, a cenom su obuhvaćeni i distanceri koji fiksiraju udaljenost armature od oplate.","kg",{"v":9425,"d":"9,425.00"},null,{"$f":"D24*E24","v":{"v":0,"d":"0.00"}}]
[{"$nulls":3},"UKUPNO:",null,{"$f":"F24","v":{"v":0,"d":"0.00"}}]
[]
[null,"4.BRAVARSKI RADOVI"]
["04.01.","Nabavka i isporuka stadardnog univerzalnog žičanog pletiva od pocinkovanoe i plastificirane žice sa otvorom okaca 50x50mm ili 60x60mm i minimalnom debljnom žice 3,5mm.Visina žičanog pletiva je H= 2450 mm. Boja RAL 6005 - močvarno zelena\n Projektovana dužina ograde 2856.28 m"]
[null,"Obračun po m².","m²",{"v":7000,"d":"7,000.00"},null,{"$f":"D29*E29","v":{"v":0,"d":"0.00"}}]
["04.02.","Žica za zatezanje ograde. Žica je debljine 3,8mm, plastificirana, i postavlja se u četiri reda ( pri dnu , dva reda u  srednjem delu , i pri vrhu žičanog pletiva )  Odnos: 1kg jednako 13m       "]
[null,"Obračun po kg..","kg",{"v":900,"d":"900.00"},null,{"$f":"D31*E31","v":{"v":0,"d":"0.00"}}]
["04.03.","Zatezači  za žičano pletivo. Postavljaju se na svakih  45 m , kom 3"]
[null,"Obračun po kom.","kom",{"v":70,"d":"70.00"},null,{"$f":"D33*E33","v":{"v":0,"d":"0.00"}}]
["04.04.","Nabavka i isporuka Bodljikave žice debljine 2,0mm. Postavlja se po kosniku u tri reda, na međusobnom rastojanju 10-15cm.                       Odnos : 1kg jednako 9m (350 1:9)\nObračun po kg."]
[null,"Obračun po kg..","kg",{"v":970,"d":"970.00"},null,{"$f":"D35*E35","v":{"v":0,"d":"0.00"}}]
["04.05.","Nabavka i isporuka stubova koji su pocinkovani i plastificirani za   standardno žičano pletivo visine 2450mm. Presek stubova je 60x60x3mm. Na vrhu stuba postavlja se  kosnik profila 60x40x3mm, dužine kraka min 500mm postavljen pod uglom od 45stepeni u odnosu na osu stuba. Osovinski razmak između stubova je 2500mm. Stubovi su ukupne visine 3700 mm (ravni deo + kosnik 500mm) . . Boja RAL 6005 - močvarno zelena\nObračun po kom."]
[null,"Obračun po kom.","kom",{"v":1143,"d":"1,143.00"},null,{"$f":"D37*E37","v":{"v":0,"d":"0.00"}}]
["04.06.","Kosnik ( potpora )  pocinkovan  i plastificiran, dimenzija 60x60x3 mm i dužine je 2650mm. Postavlja se  na svakih  30m po 2kom"]
[null,"Obračun po kom.","kom",{"v":193,"d":"193.00"},null,{"$f":"D39*E39","v":{"v":0,"d":"0.00"}}]
["04.07.","Metalni držači za pričvršćivanje pletiva za stub. Postavlja se po 6 kom na stubu"]
[null,"Obračun po komadu.","kom",{"v":6858,"d":"6,858.00"},null,{"$f":"D41*E41","v":{"v":0,"d":"0.00"}}]
["04.08.","Montaža ograde : Na terenu  pripremljenom  za montažu ograde vrši se geometarsko razmeravanje  duž linije ograde. Ovom pozicijom je obuhvaćena samo ugradnja čeličnih stubova i montaža univerzal pletiva i bodljikave žice sa svim potrebnim veznim materijalom. Iskop zemlje i betonski radovi obrađeni su u predhodnim  pozicijama "]
[null,"Obračun po m1","m1",{"v":2856.28,"d":"2,856.28"},null,{"$f":"D43*E43","v":{"v":0,"d":"0.00"}}]
["04.09.","Dvokrilna kapija visine 200cm svetli otvor širine krila 6,0m ( 300+300). koja na vrhu ima ugrađene šiljke u svemu prema detalju iz projekta. Ram kapije  je izrađen od profila  80x40x3 sa ispunom od panela LEGI RS ili slično.Paneli su izrađeni od varene žice,debljina žice 8/8/6 sa osovinskom dimenzijom okaca 50x200mm. Noseći stubovi kapije su izrađeni od profila 120x120x4mm i duži su za 600mm  od visine kapije , zbog betoniranja istih u temeljnu stopu. Cenom kapije je obuhvaćen kompletan pribor, štelujuže šarke, cilindrična brava sa 3 ključa, kvake  i prihvatnik, kao isav potreban sitan pribor za montažu.Kapija je toplo cinkovana prema normi DIN EN ISO 1461 i farbana u 2 premaza u boji ograde. Obračun se vrši po komadu koplet isporučeno i montirano."]
[null,"Obračun po kom","kom",{"v":1,"d":"1.00"},null,{"$f":"D45*E45","v":{"v":0,"d":"0.00"}}]
["04.10.","Jednokrilna pešačka kapija visine 200cm svetli otvor širine krila 1,0m. Ram kapije je izrađen od profila 80x40x3 sa ispunom od panela .Paneli su izrađeni od varene žice,debljina žice 8/8/6 sa osovinskom dimenzijom okaca 50x200mm. Noseći stubovi kapije su izrađeni od profila 120x120x4mm i duži su za 600mm od visine kapije , zbog betoniranja istih u temeljnu stopu. Svi elementi kapije su pocinkovani i plastificirani. Cenom kapije je obuhvaćen kompletan pribor, štelujuže šarke, cilindrična brava sa 3 ključa, kvake i prihvatnik, kao isav potreban sitan pribor za montažu. Obračun se vrši po komadu komplet isporučeno i montirano.Boja RAL 6005 - močvarno zelena."]
[null,"Obračun po kom.","kom",{"v":2,"d":"2.00"},null,{"$f":"D47*E47","v":{"v":0,"d":"0.00"}}]
[null,"4.BRAVARSKI RADOVI",null,"UKUPNO:",null,{"$f":"SUM(F29:F47)","v":{"v":0,"d":"0.00"}}]
[]
[null,"5. OSTALI RADOVI"]
["5.1.","Izrada projekta izvedenog stanja celokupne izgradnje","kom",{"v":1,"d":"1.00"},null,{"$f":"D51*E51","v":{"v":0,"d":"0.00"}}]
["UKUPNO:",{"$nulls":4},{"$f":"F51","v":{"v":0,"d":"0.00"}}]
[]
["1.","ZEMLJANI RADOVI",{"$nulls":3},{"$f":"F13","v":{"v":0,"d":"0.00"}}]
["2.","BETONSKI RADOVI",{"$nulls":3},{"$f":"F20","v":{"v":0,"d":"0.00"}}]
["3.","ARMIRAČKI RADOVI",{"$nulls":3},{"$f":"F25","v":{"v":0,"d":"0.00"}}]
["4.","BRAVARSKI RADOVI",{"$nulls":3},{"$f":"F48","v":{"v":0,"d":"0.00"}}]
["5."," OSTALI RADOVI",{"$nulls":3},{"$f":"F52","v":{"v":0,"d":"0.00"}}]
["UKUPNO E:",{"$nulls":4},{"$f":"SUM(F54:F57)","v":{"v":0,"d":"0.00"}}]

{"sheet":"Rekapitulacija","index":5,"n_rows":33,"n_cols":8,"rows_kept":33,"merged":[[2,1,2,7],[3,1,3,6],[4,1,4,6],[8,1,8,4],[8,5,8,6],[9,1,9,6],[10,1,10,5],[11,1,11,5],[13,1,13,4],[13,5,13,6],[14,1,14,6],[15,1,15,5],[16,1,16,5],[17,1,17,5],[18,1,18,5],[19,1,19,5],[20,1,20,5],[21,1,21,4],[21,5,21,6],[22,1,22,6],[23,1,23,5],[24,1,24,4],[24,5,24,6],[25,1,25,6],[26,1,26,5],[27,1,27,5],[31,1,31,4],[31,5,31,6],[32,1,32,6]]}
[]
[{"$nulls":6},"ZBIRNA REKAPITULACIJA"]
[null,"Izvođenje radova na izgradnji piste na Aerodromu Rosulje"]
[{"$nulls":7},"Ukupna cena bez PDV-a"]
[null,"A) Građevina-PSS"]
[null,"1.PRIPREMNI RADOVI"]
[null,"2.ZEMLJANI RADOVI"]
[null,"3.KOLOVOZNA KONSTRUKCIJA"]
[null,"A) Svega (1+2+3):",{"$nulls":5},{"$f":"SUM(H6:H8)","v":{"v":0,"d":"0.00"}}]
[null,"B) Građevina-Parimetarski put"]
[null,"1.PRIPREMNI RADOVI"]
[null,"2.ZEMLJANI RADOVI"]
[null,"3.KOLOVOZNA KONSTRUKCIJA"]
[null,"B)Svega (1+2+3):",{"$nulls":5},{"$f":"SUM(H11:H13)","v":{"v":0,"d":"0.00"}}]
[null,"C) Odvodnjavanje"]
[null,"1.PRIPREMNI RADOVI"]
[null,"2.TESARSKI RADOVI"]
[null,"3.ZEMLJANI RADOVI"]
[null,"4.BETONSKI I AB  RADOVI"]
[null,"5.MONTAŽNI RADOVI"]
[null,"6.RAZNI RADOVI"]
[null,"C)Svega (1+2+3+4+5+6):",{"$nulls":5},{"$f":"SUM(H16:H21)","v":{"v":0,"d":"0.00"}}]
[null,"D)MARKACIJA"]
[null,"1.HORIZONTALNA SIGNALIZACIJA"]
[null,"D)Svega (1):",{"$nulls":5},{"$f":"H24","v":{"v":0,"d":"0.00"}}]
[null,"E)OGRADA"]
[null,"1.ZEMLJANI RADOVI"]
[null,"2.BETONSKI RADOVI"]
[null,"3.ARMIRAČKI RADOVI"]
[null,"4.BRAVARSKI RADOVI"]
[null," OSTALI RADOVI"]
[null,"E)Svega (1+2+3+4+5):",{"$nulls":5},{"$f":"SUM(H27:H31)","v":{"v":0,"d":"0.00"}}]
[null,"Ukupna vrednost (A+B+C+D+E)",{"$nulls":5},{"$f":"H9+H14+H22+H25+H32","v":{"v":0,"d":"0.00"}}]